Cogmind - Beta 17 @@@ ROGUE MODE // 2026.07.20 @ 19:00:32 Player: Arttano Result: Destroyed by G-34 Mercenary with Small Laser Performance ------------- Evolutions (0) 0 Regions Visited (1) 200 Robots Destroyed (16) 80 Value Destroyed (355) 355 Prototype IDs (2) 40 Alien Tech Used (0) 0 Bonus (0) 0 TOTAL SCORE: 675 Bonus ------- None Cogmind --------- Core Integrity 0/250 Matter 279/300 Energy 250/250 System Corruption 0% Temperature Cool (6) Movement Core (1800) Ox35 Location -10/Materials Parts ------- > --- POWER (1) -------- Ion Engine > --- PROPULSION (2) --- Light Treads > --- UTILITY (2) ------ Large Storage Unit Huge Storage Unit > --- WEAPON (2) ------- Light Assault Rifle Light Assault Rifle > --- INVENTORY (25) --- Ion Engine Light Ion Engine Light Ion Engine Compact Wheel Small Storage Unit Seismic Detector Light Armor Plating EM Pulse Gun Medium Laser Light Assault Rifle Peak State ------------ > --- POWER ------------ Ion Engine > --- PROPULSION ------- Light Treads Wheel > --- UTILITY ---------- Large Storage Unit Huge Storage Unit > --- WEAPON ----------- Assault Rifle Light Assault Rifle > --- INVENTORY -------- Light Ion Engine Light Ion Engine Light Treads Compact Wheel Small Storage Unit Seismic Detector Light Armor Plating EM Pulse Gun Medium Laser Light Assault Rifle [Rating: 8] Favorites ----------- Power Ion Engine Engine Ion Engine Propulsion Light Treads Treads Light Treads Leg Aluminum Leg Wheel Wheel Utility Large Storage Unit Storage Large Storage Unit Weapon Assault Rifle Energy Gun Medium Laser Ballistic Gun Assault Rifle Build | -11 -10 ------- Run | Yrd Mat Slots Evolved . | . . Power . | . . Propulsion . | . . Utility . | . . Weapon . | . . Parts Attached 10 | 3 7 Power 1 | . 1 Engine 1 | . 1 Core . | . . Reactor . | . . Propulsion 3 | 2 1 Treads 2 | 1 1 Leg . | . . Wheel 1 | 1 . Hover . | . . Flight . | . . Utility 2 | . 2 Device . | . . Storage 2 | . 2 Processor . | . . Hackware . | . . Protection . | . . Artifact . | . . Weapon 4 | 1 3 Energy Gun 1 | 1 . Energy Cannon . | . . Ballistic Gun 3 | . 3 Ballistic Cannon . | . . Launcher . | . . Special Weapon . | . . Impact Weapon . | . . Slashing Weapon . | . . Piercing Weapon . | . . Special Melee Weapon . | . . Unidentified Prototypes . | . . Parts Lost 3 | . 3 Power . | . . Propulsion 2 | . 2 Utility . | . . Weapon 1 | . 1 Highest Loss Streak 3 | . 3 To Critical Strikes . | . . Average Backups 9 | 6 9 Power 2 | 1 2 Propulsion 2 | 3 1 Utility 2 | . 2 Weapon 2 | 1 2 Tool/Special . | . . Unused Backups 13 | 5 8 Power 3 | . 3 Propulsion 4 | 4 . Utility 5 | 1 4 Weapon 1 | . 1 Tool/Special . | . . Average Slot Usage (%) 98 | . 98 Engine 14 | . 14 Treads 14 | . 14 Wheel 12 | . 12 Storage 27 | . 27 Energy Gun 2 | . 2 Ballistic Gun 25 | . 25 Peak Build Rating 8 | 6 8 Average Rating 7 | 5 7 On Entrance 6 | 6 6 Avg Prop Armor Cover (%) 12 | 12 12 Naked Turns . | . . Heaviest Build 108 | 14 108 Greatest Support 10 | 10 10 Greatest Overweight (x) 35 | 1 35 Average Overweight (x) 5 | 1 6 Largest Inventory Capacity 25 | 8 25 Average Capacity 19 | 8 21 Most Carried 12 | 8 12 Average Carried 9 | 6 9 Final Capacity 25 | 8 25 Final Carried 10 | 6 10 Class Distribution -------------------- 100% | Mutant Dominant Class ---------------- Mutant | -10/Materials Resources | -11 -10 ----------- Run | Yrd Mat Matter Collected 419 | 254 165 Remotely . | . . Salvage Created 528 | 136 392 Parts 33 | 8 25 Haulers Intercepted . | . . Recyclers Shooed 1 | . 1 Parts Field Recycled . | . . Retrieved Matter . | . . Parts Self-Destructed . | . . Prevented . | . . Parts Restored . | . . Kills | -11 -10 ------- Run | Yrd Mat Combat Hostiles Destroyed 13 | . 13 Guns 13 | . 13 Classes Destroyed 4 | 2 2 Tunneler 2 | 2 . Recycler 1 | 1 . Swarmer 5 | . 5 Grunt 8 | . 8 Best Kill Streak 4 | 2 4 Combat Bots Only 4 | . 4 Max Kills in Single Turn 1 | 1 1 Gunslinging . | . . Exploded . | . . Melee . | . . Uniques/NPCs Destroyed . | . . Combat | -11 -10 -------- Run | Yrd Mat Hostile Shots Fired 126 | . 126 Missed 35 | . 35 Hits 91 | . 91 Projectile 91 | . 91 Damage Taken 959 | . 959 Core 251 | . 251 Absorbed by Shields . | . . Core Remaining (%) 100 | 100 . Volleys Fired 44 | 8 36 Largest 2 | 2 2 Hottest 70 | 70 70 Shots Fired 88 | 16 72 Gun 88 | 16 72 Cannon . | . . Launcher . | . . Special . | . . Kinetic 71 | 8 63 Thermal 16 | 7 9 Explosive . | . . Electromagnetic 1 | 1 . Robot Hit Streak 7 | 5 7 Robot Miss Streak 3 | 2 3 Penetration Max . | . . Secondary Targets 2 | . 2 Max Gunslinging Chain 1 | . 1 Shots Hit Robots 57 | 11 46 Core Hits 28 | 4 24 Critical Kills . | . . Critical Parts Destroyed . | . . Critical Strikes 2 | 1 1 Burn 2 | 1 1 Melee Attacks . | . . Impact . | . . Slashing . | . . Piercing . | . . Sneak Attacks . | . . Combat Hostiles . | . . Follow-up Attacks . | . . Damage Inflicted 663 | 134 529 Guns 663 | 134 529 Cannons . | . . Explosions . | . . Melee . | . . Ramming . | . . Kinetic 527 | 59 468 Thermal 124 | 63 61 Explosive . | . . Electromagnetic 12 | 12 . Impact . | . . Slashing . | . . Piercing . | . . Highest Corruption . | . . Average Corruption . | . . Corruption Purged . | . . Corruption Blocked . | . . Overload Shots . | . . Overflow Damage . | . . Projectiles . | . . Explosions . | . . Melee . | . . Knockbacks . | . . Impact . | . . Kinetic . | . . Secondary . | . . Self-Inflicted Damage . | . . Shots . | . . Rammed . | . . Targets Rammed . | . . Kicked . | . . Crushed . | . . Highest Temperature 123 | 54 123 Average Temperature 35 | 25 39 Received Heat Transfer 375 | . 375 Siege Activations . | . . Martial Activations . | . . Shielding Activations . | . . Robots Disrupted . | . . Combat Hostiles . | . . Robots Corrupted . | . . Combat Hostiles . | . . Parts Fried . | . . Impact Corruptions . | . . Robots Melted . | . . Combat Hostiles . | . . Parts Melted 1 | 1 . Heat Transferred 518 | 259 259 Parts Sabotaged . | . . Parts Stolen . | . . Parts Stripped . | . . Power Chain Reactions . | . . Alert | -11 -10 ------- Run | Yrd Mat Maximum Alert Level . | . . Low Security (%) 100 | 100 100 Level 1 . | . . Level 2 . | . . Level 3 . | . . Level 4 . | . . Level 5 . | . . High Security . | . . Max Security . | . . Peak Influence 118 | 5 118 Initial . | . . Average 37 | 1 43 Influence Increases 330 | 15 315 Destroy 0b10 Robot/C 260 | . 260 Destroy 0b10 Robot/NC 15 | 15 . Destroy Leader 40 | . 40 Lose Combat Pursuer 15 | . 15 Influence Decreases 278 | 15 263 Time Decay 248 | 15 233 Lost Part 30 | . 30 Squads Dispatched 3 | . 3 Investigation 2 | . 2 Extermination . | . . Reinforcement 1 | . 1 Assault . | . . Garrison . | . . Intercept . | . . Searches Triggered . | . . Construction Impeded . | . . Haulers Reinforced . | . . Active Scanning Responses . | . . Cargo Convoy Interrupts . | . . Stealth | -11 -10 --------- Run | Yrd Mat Distress Signals 3 | . 3 Communications Jammed . | . . Distress Signals . | . . Times Spotted 25 | . 25 Peak Tracking Total 7 | . 7 Tactical Retreats 1 | . 1 Traps | -11 -10 ------- Run | Yrd Mat Traps Triggered 3 | . 3 Indirectly . | . . Trap Hack Attempts . | . . Triggered . | . . Disarmed . | . . Reprogrammed . | . . Reused . | . . Traps Extracted . | . . Installed . | . . Triggered . | . . Machines | -11 -10 ---------- Run | Yrd Mat Machines Disabled . | . . Max in Single Turn . | . . Machines Repaired . | . . Machines Dismantled . | . . Machines Sabotaged . | . . Overloaded Fab Kills . | . . Hacking | -11 -10 --------- Run | Yrd Mat Machines Accessed 1 | . 1 Terminals 1 | . 1 Fabricators . | . . Repair Stations . | . . Recycling Units . | . . Scanalyzers . | . . Garrison Access . | . . Total Hacks 2 | . 2 Successful 1 | . 1 Failed 1 | . 1 Catastrophic . | . . Database Lockouts . | . . Manual 1 | . 1 Terminals 2 | . 2 Fabricators . | . . Repair Stations . | . . Recycling Units . | . . Scanalyzers . | . . Garrison Access . | . . Terminal Hacks 1 | . 1 Prototype ID Bank 1 | . 1 Fabricator Hacks . | . . Repair Station Hacks . | . . Recycling Unit Hacks . | . . Scanalyzer . | . . Garrison Access Hacks . | . . Unauthorized Hacks . | . . Terminals . | . . Fabricators . | . . Repair Stations . | . . Recycling Units . | . . Scanalyzers . | . . Garrison Access . | . . Data Cores Recovered . | . . Used . | . . Hacking Detections 1 | . 1 Full Trace Events . | . . Feedback Events . | . . Feedback Blocked . | . . Robot Schematics Acquired . | . . Robots Built . | . . Authchips . | . . Time . | . . Total Robot Build Rating . | . . Part Schematics Acquired . | . . Parts Built . | . . Authchips . | . . Time . | . . Total Part Build Rating . | . . Part Studies Acquired . | . . Parts Repaired . | . . Time . | . . Parts Recycled . | . . Recycled Matter . | . . Retrieved Matter . | . . Retrieved Components . | . . Parts Scanalyzed . | . . Part Schematics Acquired . | . . Parts Damaged . | . . Bothacking | -11 -10 ------------ Run | Yrd Mat Used RIF Installer . | . . Robots Hacked . | . . Non-combat . | . . Combat . | . . Robot Hacks Applied . | . . Relay Couplers Released . | . . Fabnet Peak Effective % . | . . Robots Rewired . | . . Allies Hacked . | . . Hacks Repelled . | . . Allies | -11 -10 -------- Run | Yrd Mat Total Allies . | . . Largest Group . | . . Highest-Rated Group . | . . Highest-Rated Ally . | . . Total Orders . | . . Ally Attacks . | . . Total Damage . | . . Kills . | . . Allies Corrupted . | . . Allies Melted . | . . Intel | -11 -10 ------- Run | Yrd Mat Active Infowar (turns) . | . . Robot Analysis Total . | . . Derelict Logs Recovered . | . . Drone Launches . | . . Drone Recoveries . | . . Exploration | -11 -10 ------------- Run | Yrd Mat Turns Passed 701 | 98 603 Spaces Moved 295 | 41 254 Core 3 | . 3 Treads . | . . Legs . | . . Wheels 292 | 41 251 Hover . | . . Flight . | . . Fastest Speed 95 | 95 95 Average Speed 172 | 95 185 Slowest Speed 1800 | 95 1800 Overloaded Moves . | . . Propulsion Burnouts . | . . Robots Hopped . | . . Potential Cave-ins . | . . Cave-ins Triggered . | . . Exploration Rate (%) 27 | 4 51 Regions Visited 1 Branch Regions . Pre-discovered Areas . | . . Known Exits Taken . | . . Unknown Exits Taken 1 | 1 . Scrap Searched . | . . Spaces Dug . | . . Terrain Destroyed . | . . Melee . | . . Projectile . | . . AOE . | . . Terrain Rammed . | . . Walls Destroyed . | . . Machines Disabled . | . . Actions | -11 -10 --------- Run | Yrd Mat Total 413 | 85 328 Wait 54 | 26 28 Move 294 | 40 254 Hop . | . . Pick Up 6 | 3 3 Fast Attach 1 | . 1 Attach 4 | 2 2 Detach 2 | 2 . Swap 5 | 1 4 Drop 3 | 3 . Fire 44 | 8 36 Melee . | . . Ram . | . . Kick . | . . Crush . | . . Escape Stasis . | . . Rewire . | . . Trap . | . . Miscellaneous . | . . Route ------- -11/Scrapyard -10/Materials (discovered 1 exit: [*Mat]) History --------- Turn | Location | Event 5 | -11/Scrapyard | Discovered new exit (range 3) 99 | -11/Scrapyard | Entered Materials 305 | -10/Materials | Build established: Mutant 457 | -10/Materials | Discovered new exit (range 7) 545 | -10/Materials | Core integrity fell below 50% 675 | -10/Materials | Core integrity fell below 20% 686 | -10/Materials | Lost 3 parts (2n1w) 702 | -10/Materials | Destroyed by G-34 Mercenary with Small Laser Last Messages --------------- 00575_ K-01 Serf collects debris. 00577_ G-34 Mercenary destroyed. 00578_ K-01 Serf collects debris. 00583_ Acquired 38 matter. 00586_ K-01 Serf collects debris. 00588_ Acquired 12 matter. 00589_ K-01 Serf collects debris. 00633_ O-16 Technician sends out distress signal. 00633_ O-16 Technician: "IFF HANDSHAKE FAILED. SECURING TERMINAL." 00645_ G-34 Mercenary destroyed. 00645_ Assault Rifle destroyed. 00646_ ALERT: Hostiles spotted, dispatching reinforcements to Terminal M004. 00647_ Lgt. Treads destroyed. 00648_ K-01 Serf collects debris. 00655_ Wheel destroyed. 00656_ K-01 Serf collects debris. 00664_ K-01 Serf cleans the Terminal. Map ----- +----------------------------------------------------+ | ??????????????????????? #??????????????? | | ??????????????????????#""" #??????????????? | | ??????????????????????#""" #??????????????? | | ??????????????????????#""" #??????????????? | | ??????????????????????# #??????????????? | | ??????????????????????#""" #############??? | | ??????????????????????#""" ##!!==]]# #??? | | ??????????????????????#"""=%= ##!!==]]# < #??? | | ??????????????????????#=%[ = ## # #??? | | ??????????????????????#/###/##### # #### | | ??????????????????????# =% | | ???????????????######## | | ???????????# = % | | ???????????????######## ######T##########+##### | | ???????????????########/########?????# %[ # | | ???????????????# #????????# """ # | | ???????????????# """ #????????# """ # | | ???????????????+ """ !!! *#????????# """ # | | ???????????????# """ !!! #????????# # | | ???????????????# !! #????????# """# | | ???????????# ??############/#?????? # R"? | | ???????????# ##### ## ###?? # ""?? | | ???????????# g # # ??? | | ???????????# g g T + !!#######??? | | ???????????# [%=! # ! #????????? | | ???????????????##### @ ######?? #????????? | | ???????????????????###/###????????? #????????? | | ???????????????????? ?????????????#????????? | | ???????????????????# ??????????????????????? | | ???????????????????# ?????????????????????? | | ???????????????????# ?????????????????????? | | ???????????????????# ????????????????????? | | ???????????????????# ! ????????????????????? | | ???????????????????# k???????????????????? | | ???????????????????# ???????????????????? | | ???????????????????#########??????????????????? | | ??????????????????????????????????????????????? | | ??????????????????????????????????????????????? | | ??????????????????????????????????????????????? | | ??????????????????????????????????????????????? | | ??????????????????????????????????????????????? | | ??????????????????????????????????????????????? | | ??????????????????????????????????????????????? | | ??????????????????????????????????????????????? | | ??????????????????????????????????????????????? | | ??????????????????????????????????????????????? | | ??????????????????????????????????????????????? | | ??????????????????????????????????????????????? | | ??????????????????????????????????????????????? | | ??????????????????????????????????????????????? | +----------------------------------------------------+ Best States ------------- Heat Dissipation 25 Energy Generation 10 Energy Capacity 250 Matter Stores 300 Matter Capacity 300 Sight Range 16 Terrain Scan Density 10 Evasion (%) 41 Recoil Reduction 1 Item Schematics ----------------- None Robot Schematics ------------------ None Fabricated ------------ Nothing Repaired ---------- Nothing Studied --------- None Alien Tech Used ----------------- None Achievements -------------- None Challenges ------------ None Game ------ Seed EnergyArchitectRefractor Manual? 0 Play Time 00:07:15 Cumulative 25.4 hours Start 2026.07.20 @ 18:54:21 End 2026.07.20 @ 19:00:32 Sessions 1 Manual Loads 0 Difficulty Rogue Special Mode None Game No. 31 Rogue 31 Adventurer 0 Explorer 0 Win Type - Total 0 Types 0/0/0/0/0/0/0/0/0/0 Lore% 21 Gallery% 19 Achievement% 20 Wizard Run 0 Options --------- Layout 2 ASCII 0 Keyboard 1 Movement Numpad Keybinds 1 Fullscreen 2 Font 24/Terminus Map View 50x44 Zoom Use 0% Tactical HUD 1 Map Filters NONE Filters LOW_CONTRAST(18,8,8)|SATURATION(90)|BRIGHTNESS(90) Steam 1 RUN: 1c90b351-6d25-422f-aad7-793f0bfb454f